bitfinex/quotes_SOLUSD_20240717
["timestamp","ask_amount","ask_price","bid_price","bid_amount"]
[1721199823184,6.2073,161.1,161.03,1.2415531]
[1721199823511,0.34,161.12,161.03,21.2415531]
[1721199823701,0.34,161.12,161.03,1.2415531]
[1721199824211,0.34,161.12,161.03,46.2415531]
[1721199824395,0.34,161.12,161.04,20.0]
[1721199824589,0.34,161.12,161.05,45.0]
[1721199824820,6.5465,161.12,161.05,46.24152273]
[1721199825109,0.34,161.12,161.05,46.24152273]
[1721199825705,6.5465,161.12,161.05,46.24152273]
[1721199825915,7.78771406,161.12,161.05,46.24152273]
[1721199826209,6.2072,161.11,161.04,20.0]
[1721199826415,1.24121406,161.1,161.05,1.24162708]
[1721199826590,1.24121406,161.1,161.02,0.8332435]
[1721199826987,1.24121406,161.1,161.02,45.8332435]
[1721199827182,1.24121406,161.1,161.03,20.0]
[1721199827384,1.24121406,161.11,161.04,45.0]
[1721199827581,1.24121406,161.11,161.05,20.0]
[1721199827805,1.24121406,161.1,161.05,20.0]
[1721199828019,1.24121406,161.1,161.05,21.24166806]
[1721199828312,1.24121406,161.11,161.05,1.24166806]
[1721199828491,1.41121406,161.1,161.05,1.24169138]
[1721199828688,0.17,161.09,161.03,1.24170248]
[1721199829028,1.41121406,161.1,161.03,1.24173372]
[1721199829192,0.17,161.1,161.03,21.24173372]
[1721199829391,0.34,161.11,161.04,45.0]
[1721199829589,0.17,161.11,161.05,1.2415829]
[1721199829786,1.24121406,161.12,161.05,1.2415829]
[1721199830099,0.17,161.11,161.04,45.0]
[1721199830288,1.41121406,161.11,161.04,45.0]
[1721199830915,1.24121406,161.11,161.04,45.0]
[1721199831108,1.24121406,161.12,161.04,45.0]
[1721199831282,7.44771406,161.12,161.04,45.0]
[1721199831485,1.24121406,161.12,161.04,45.0]
[1721199831801,1.24121406,161.12,161.05,21.241452]
[1721199833587,22.1565,161.13,161.05,21.241452]
[1721199833802,21.9865,161.13,161.06,45.0]
[1721199834000,21.9865,161.13,161.07,21.24137961]
[1721199834300,36.7965,161.13,161.08,16.05137993]
[1721199835103,36.7965,161.13,161.06,45.0]
[1721199835104,21.9865,161.13,161.1,14.81]
[1721199836326,21.9865,161.13,161.09,14.81]
[1721199836722,21.9865,161.13,161.1,1.24130895]
[1721199837216,21.9865,161.13,161.09,14.81]
[1721199837531,15.456,161.13,161.12,14.81]
[1721199837702,1.24121406,161.16,161.12,14.81]
[1721199838021,22.2193,161.17,161.08,10.0]
[1721199838022,22.2193,161.17,161.13,16.05110758]
[1721199838213,23.46051406,161.17,161.13,14.81]
[1721199838827,22.2193,161.17,161.14,1.2410515]
[1721199839610,22.2193,161.17,161.13,14.81]
[1721199839825,16.05121406,161.16,161.06,45.0]
[1721199840027,22.2193,161.17,161.07,61.24112728]
[1721199840229,22.2193,161.17,161.13,14.81]
[1721199840524,23.46051406,161.17,161.13,14.81]
[1721199840838,21.0151,161.16,161.1,14.81]
[1721199841001,16.05121406,161.16,161.11,14.81]
[1721199841203,22.2193,161.17,161.13,14.81]
[1721199841513,23.46051406,161.17,161.13,14.81]
[1721199841713,22.2193,161.17,161.13,14.81]
[1721199842331,23.46051406,161.17,161.13,14.81]
[1721199842627,22.2193,161.17,161.13,14.81]
[1721199843005,1.41121406,161.16,161.07,50.0]
[1721199843220,14.81,161.14,161.09,14.81]
[1721199843443,14.98,161.15,161.1,34.81]
[1721199843633,16.22121406,161.16,161.1,14.81]
[1721199844309,7.61621406,161.16,161.1,14.81]
[1721199844539,14.81,161.15,161.1,14.81]
[1721199844709,16.22121406,161.16,161.11,14.81]
[1721199845305,1.41121406,161.16,161.11,14.81]
[1721199845715,16.22121406,161.16,161.11,14.81]
[1721199846228,16.22121406,161.16,161.07,20.0]
[1721199846229,1.41121406,161.16,161.12,14.81]
[1721199846435,22.2193,161.17,161.13,14.81]
[1721199847307,14.81,161.16,161.1,14.81]
[1721199847603,14.81,161.16,161.11,20.0]
[1721199848032,1.24121406,161.16,161.11,34.81]
[1721199848328,38.44051406,161.17,161.11,20.0]
[1721199848635,23.63051406,161.17,161.11,14.81]
[1721199848802,38.44051406,161.17,161.12,20.0]
[1721199849007,0.17,161.16,161.12,20.0]
[1721199849218,1.24121406,161.16,161.12,20.0]
[1721199849416,37.0293,161.17,161.12,34.81]
[1721199849615,1.24121406,161.16,161.13,14.81]
[1721199849827,17.31051406,161.17,161.13,14.81]
[1721199850004,16.0693,161.17,161.13,14.81]
[1721199850205,1.41121406,161.18,161.13,14.81]
[1721199850429,6.4556,161.2,161.16,14.81]
[1721199850707,7.69681406,161.2,161.16,14.81]
[1721199850910,6.4556,161.2,161.12,44.81]
[1721199851108,6.4556,161.2,161.17,14.81]
[1721199851508,15.7953,161.22,161.17,14.81]
[1721199852031,17.03651406,161.22,161.17,14.81]
[1721199852222,17.03651406,161.22,161.18,0.33821959]
[1721199852425,15.7953,161.22,161.16,20.0]
[1721199853006,15.7953,161.22,161.14,20.0]
[1721199853333,1.24121406,161.24,161.15,55.0]
[1721199853519,1.24121406,161.23,161.16,20.0]
[1721199853717,1.24121406,161.23,161.17,45.0]
[1721199853918,1.24121406,161.23,161.15,10.0]
[1721199854117,1.24121406,161.23,161.16,20.0]
[1721199854334,1.24121406,161.23,161.14,20.0]
[1721199854525,0.17,161.22,161.15,45.0]
[1721199854730,0.17,161.22,161.16,20.0]
[1721199854923,0.34,161.23,161.16,20.0]
[1721199855529,0.17,161.24,161.16,20.0]
[1721199855742,1.58121406,161.24,161.16,20.0]
[1721199859634,7.25291406,161.25,161.17,45.0]
[1721199859930,7.25291406,161.25,161.18,20.0]
[1721199865551,0.34,161.24,161.18,20.0]
[1721199865752,1.24121406,161.23,161.14,20.0]
[1721199866061,6.3729,161.22,161.14,20.0]
[1721199866258,1.41121406,161.21,161.14,20.0]
[1721199866430,1.41121406,161.22,161.14,20.0]
[1721199867355,0.17,161.21,161.14,20.0]
[1721199867547,1.41121406,161.22,161.14,20.0]
[1721199868060,1.41121406,161.22,161.15,45.0]
[1721199868359,1.41121406,161.22,161.16,20.0]
[1721199868834,1.41121406,161.22,161.14,20.0]
[1721199871174,16.167,161.21,161.08,2.10034121]
[1721199871459,6.2041,161.19,161.09,30.0]
[1721199871629,1.41121406,161.18,161.09,30.0]
[1721199871829,1.24121406,161.17,161.09,30.0]
[1721199872424,16.5058,161.15,161.09,30.0]
[1721199872629,1.24121406,161.14,161.09,30.0]
[1721199872858,1.24121406,161.14,161.08,2.10034121]
[1721199873059,1.24121406,161.14,161.04,29.59]
[1721199873360,1.24121406,161.14,161.07,30.0]
[1721199873853,1.24121406,161.14,161.08,20.0]
[1721199874267,1.24121406,161.14,161.1,14.81]
[1721199874958,17.74701406,161.15,161.11,14.81]
[1721199875147,17.74701406,161.15,161.12,14.81]
[1721199875351,16.5058,161.15,161.12,14.81]
[1721199875659,16.5058,161.15,161.13,14.81]
[1721199875837,16.5058,161.15,161.12,14.81]
[1721199876338,16.5058,161.15,161.07,10.0]
[1721199876538,16.5058,161.15,161.12,14.81]
[1721199877136,16.5058,161.15,161.14,14.81]
[1721199877561,16.5058,161.15,161.13,14.81]
[1721199878051,16.5058,161.15,161.12,14.81]
[1721199878240,16.5058,161.15,161.13,14.81]
[1721199880556,1.24121406,161.18,161.14,16.05104797]
[1721199880740,31.38041406,161.19,161.14,14.81]
[1721199881965,14.81,161.18,161.13,14.81]
[1721199882141,16.05121406,161.17,161.12,14.81]
[1721199882346,16.05121406,161.17,161.08,45.0]
[1721199882347,14.81,161.16,161.11,14.81]
[1721199882538,14.81,161.16,161.12,20.0]
[1721199884276,16.22121406,161.18,161.13,14.81]
[1721199886251,14.98,161.18,161.14,1.24104146]
[1721199886570,1.24121406,161.18,161.14,16.05104146]
[1721199886881,15.3292,161.19,161.15,1.24092839]
[1721199887050,16.57041406,161.19,161.15,1.24092839]
[1721199887670,16.57041406,161.19,161.15,16.05092839]
[1721199887975,15.3292,161.19,161.16,1.24088417]
[1721199888879,15.3292,161.19,161.15,14.81]
[1721199889174,15.3292,161.19,161.16,1.2408783]
[1721199889385,15.3292,161.19,161.16,16.0508783]
[1721199889675,15.3292,161.19,161.16,14.81]
[1721199890048,15.3292,161.19,161.14,1.24082407]
[1721199890049,15.3292,161.19,161.15,14.81]
[1721199890471,15.3292,161.19,161.14,14.81]
[1721199890668,15.3292,161.19,161.15,1.24083735]
[1721199891062,31.38041406,161.19,161.14,14.81]
[1721199891963,37.58431406,161.19,161.14,14.81]
[1721199892160,14.81,161.18,161.12,20.0]
[1721199892350,1.24121406,161.17,161.12,14.81]
[1721199892551,1.24121406,161.17,161.13,20.0]
[1721199892775,1.24121406,161.17,161.12,14.81]
[1721199893094,16.05121406,161.18,161.12,14.81]
[1721199893381,16.05121406,161.18,161.13,14.81]
[1721199894256,16.05121406,161.18,161.14,1.24099148]
[1721199894853,16.05121406,161.18,161.13,14.81]
[1721199895756,16.05121406,161.17,161.1,20.0]
[1721199895951,7.44591406,161.17,161.1,14.81]
[1721199896176,14.81,161.14,161.05,28.58113488]
[1721199896380,6.3751,161.16,161.09,14.81]
[1721199896381,16.05121406,161.15,161.09,14.81]
[1721199896570,16.05121406,161.15,161.1,14.81]
[1721199896759,1.24121406,161.15,161.11,14.81]
[1721199897154,16.05121406,161.15,161.09,14.81]
[1721199897379,1.24121406,161.14,161.1,20.0]
[1721199897678,14.81,161.15,161.1,34.81]
[1721199897679,16.05121406,161.15,161.1,34.81]
[1721199898080,1.24121406,161.15,161.11,14.81]
[1721199898474,1.24121406,161.15,161.11,16.05117517]
[1721199898779,1.24121406,161.15,161.1,34.81]
[1721199900081,16.05121406,161.15,161.1,34.81]
[1721199901272,1.24121406,161.15,161.1,34.81]
[1721199901586,16.05121406,161.16,161.11,16.05123233]
[1721199901789,14.81,161.16,161.11,16.05123233]
[1721199901973,1.24121406,161.15,161.1,20.0]
[1721199902286,16.05121406,161.16,161.11,14.81]
[1721199902485,14.81,161.16,161.11,14.81]
[1721199903557,16.05121406,161.17,161.11,14.81]
[1721199903965,16.05121406,161.17,161.12,1.24112422]
[1721199904287,16.05121406,161.17,161.11,14.81]
[1721199904460,14.81,161.16,161.11,14.81]
[1721199905174,1.24121406,161.15,161.05,16.419]
[1721199905371,14.81,161.11,161.07,30.0]
[1721199905576,14.81,161.1,161.05,14.81]
[1721199906488,14.81,161.1,161.03,10.8208803]
[1721199906690,14.81,161.11,161.05,14.81]
[1721199906983,14.81,161.1,161.06,20.0]
[1721199907158,14.81,161.1,161.04,14.81]
[1721199907353,16.05121406,161.1,161.04,14.81]
[1721199907589,14.81,161.09,161.03,15.6308803]
[1721199907767,1.24121406,161.1,161.03,15.6308803]
[1721199908089,16.05121406,161.1,161.04,14.81]
[1721199910783,14.81,161.1,161.05,59.81]
[1721199911361,1.24121406,161.11,161.05,59.81]
[1721199911559,1.24121406,161.11,161.06,14.81]
[1721199911560,16.05121406,161.11,161.06,14.81]
[1721199912063,16.05121406,161.11,161.07,1.24151331]
[1721199912264,1.24121406,161.11,161.07,16.05151331]
[1721199912471,16.05121406,161.12,161.07,16.05151331]
[1721199912989,16.05121406,161.12,161.07,14.81]
[1721199913588,16.05121406,161.12,161.08,1.24147595]
[1721199914369,16.05121406,161.12,161.07,14.81]
[1721199914570,14.81,161.11,161.06,14.81]
[1721199917265,15.5466,161.13,161.05,45.0]
[1721199917467,31.59781406,161.13,161.08,14.81]
[1721199921493,14.81,161.12,161.07,14.81]
[1721199922777,15.5466,161.13,161.07,14.81]
[1721199922990,14.81,161.12,161.07,14.81]
[1721199924299,14.81,161.12,161.04,45.0]
[1721199924300,30.3566,161.13,161.08,14.81]
[1721199926704,15.166,161.17,161.1,14.81]
[1721199926915,14.81,161.15,161.11,1.24112339]
[1721199927079,14.81,161.15,161.1,14.81]
[1721199929384,14.81,161.15,161.11,0.90693326]
[1721199929697,15.166,161.17,161.13,14.81]
[1721199929902,15.166,161.17,161.15,14.81]
[1721199930079,6.0819,161.18,161.15,14.81]
[1721199930285,16.4044,161.21,161.09,20.0]
[1721199930286,23.84871406,161.21,161.16,16.05086015]
[1721199930609,16.4044,161.21,161.17,16.05076195]
[1721199930795,16.4044,161.21,161.17,14.81]
[1721199931009,17.64561406,161.21,161.17,14.81]
[1721199931591,17.64561406,161.21,161.16,14.81]
[1721199932098,38.65871406,161.21,161.12,69.24]
[1721199932307,38.65871406,161.21,161.13,65.0]
[1721199933015,38.65871406,161.21,161.15,14.81]
[1721199933388,38.65871406,161.21,161.16,1.24073597]
[1721199933589,32.45561406,161.21,161.16,16.05073597]
[1721199933920,16.4044,161.21,161.17,14.81]
[1721199934088,38.65871406,161.21,161.13,65.0]
[1721199934289,1.24121406,161.2,161.15,14.81]
[1721199934491,16.05121406,161.2,161.15,14.81]
[1721199934795,14.81,161.2,161.15,14.81]
[1721199935486,14.81,161.19,161.13,20.0]
[1721199935687,1.24121406,161.18,161.13,14.81]
[1721199935989,1.24121406,161.18,161.14,20.0]
[1721199936199,1.24121406,161.18,161.14,34.81]
[1721199936705,16.05121406,161.2,161.15,0.9763975]
[1721199936908,16.05121406,161.2,161.14,34.81]
[1721199937112,14.81,161.19,161.14,20.0]
[1721199937408,14.81,161.18,161.13,14.81]
[1721199937609,14.81,161.18,161.11,20.0]
[1721199937610,16.05121406,161.19,161.14,34.81]
[1721199937811,14.81,161.19,161.14,14.81]
[1721199938188,31.2144,161.21,161.15,16.05067882]
[1721199938388,31.2144,161.21,161.16,14.81]
[1721199938613,31.2144,161.21,161.15,1.24067882]
[1721199938614,30.7144,161.21,161.15,1.24067882]
[1721199938825,30.7144,161.21,161.16,14.81]
[1721199939005,15.9044,161.21,161.17,1.24052486]
[1721199939310,1.24121406,161.2,161.16,14.81]
[1721199939511,30.7144,161.21,161.17,1.2407738]
[1721199939816,30.7144,161.21,161.15,14.81]
[1721199940001,30.7144,161.21,161.16,1.24061236]
[1721199940200,30.7144,161.21,161.16,16.05061236]
[1721199940502,15.9044,161.21,161.17,14.81]
[1721199940818,15.9044,161.21,161.18,1.24066751]
[1721199941709,14.81,161.2,161.15,14.81]
[1721199941903,14.81,161.2,161.16,45.0]
[1721199942434,30.7144,161.21,161.16,59.81]
[1721199943506,30.7144,161.21,161.16,45.0]
[1721199944618,30.7144,161.21,161.16,59.81]
[1721199945014,30.7144,161.21,161.16,45.0]
[1721199945403,14.81,161.2,161.16,45.0]
[1721199946530,30.7144,161.21,161.16,45.0]
[1721199946697,30.7144,161.21,161.16,59.81]
[1721199947597,15.9044,161.21,161.16,59.81]
[1721199947800,15.9044,161.21,161.17,14.81]
[1721199951320,31.95561406,161.21,161.16,45.0]
[1721199951499,16.05121406,161.2,161.15,14.81]
[1721199951707,14.81,161.19,161.16,20.0]
[1721199952102,16.05121406,161.2,161.16,20.0]
[1721199952323,14.81,161.19,161.15,20.0]
[1721199952507,14.81,161.18,161.13,14.81]
[1721199952822,14.81,161.18,161.14,20.0]
[1721199953324,14.81,161.19,161.14,20.0]
[1721199953534,16.05121406,161.18,161.14,20.0]
[1721199953712,14.81,161.18,161.13,14.81]
[1721199953906,14.81,161.18,161.14,20.0]
[1721199954111,1.24121406,161.2,161.14,34.81]
[1721199954312,14.81,161.19,161.14,34.81]
[1721199954619,16.05121406,161.2,161.14,34.81]
[1721199955730,15.9044,161.21,161.15,59.81]
[1721199955937,16.05121406,161.2,161.15,14.81]
[1721199956616,15.9044,161.21,161.15,14.81]
[1721199956828,14.81,161.2,161.15,14.81]
[1721199957204,31.95561406,161.21,161.15,14.81]
[1721199958430,1.24121406,161.2,161.15,14.81]
[1721199958610,16.05121406,161.2,161.15,14.81]
[1721199959930,14.81,161.2,161.15,14.81]
[1721199960321,14.81,161.19,161.14,34.81]
[1721199960935,1.24121406,161.18,161.14,20.0]
[1721199961127,1.24121406,161.18,161.13,14.81]
[1721199961316,1.24121406,161.18,161.14,20.0]
[1721199961516,16.05121406,161.18,161.14,20.0]
[1721199961730,14.81,161.18,161.14,20.0]
[1721199962214,14.81,161.16,161.14,20.0]
[1721199962417,14.81,161.16,161.1,14.81]
[1721199962620,14.81,161.16,161.11,20.0]
[1721199962827,14.81,161.14,161.08,14.81]
[1721199963020,14.81,161.14,161.09,30.0]
[1721199963318,16.05121406,161.15,161.09,14.81]
[1721199963725,16.05121406,161.14,161.09,14.81]
[1721199964026,14.81,161.14,161.09,14.81]
[1721199964826,14.81,161.14,161.05,17.44551399]
[1721199965141,14.81,161.14,161.09,14.81]
[1721199965713,31.0589,161.15,161.1,14.81]
[1721199966823,1.24121406,161.14,161.1,14.81]
[1721199967145,31.0589,161.15,161.1,14.81]
[1721199967314,31.0589,161.15,161.06,85.0]
[1721199967315,16.2489,161.15,161.11,16.05123177]
[1721199967522,16.0985,161.19,161.12,1.24114735]
[1721199967720,14.81,161.17,161.12,1.24114735]
[1721199967934,16.05121406,161.17,161.12,1.24114735]
[1721199968820,1.24121406,161.18,161.12,1.24114735]
[1721199969039,14.81,161.17,161.11,14.81]
[1721199969630,1.24121406,161.16,161.11,14.81]
[1721199969836,14.81,161.16,161.11,14.81]
[1721199970337,16.05121406,161.15,161.1,14.81]
[1721199970539,14.81,161.15,161.1,14.81]
[1721199971219,14.81,161.13,161.06,30.0]
[1721199971418,14.81,161.13,161.08,14.81]
[1721199971637,14.81,161.13,161.09,20.0]
[1721199971942,14.81,161.13,161.08,14.81]
[1721199972152,14.81,161.14,161.09,14.81]
[1721199972338,16.05121406,161.14,161.09,14.81]
[1721199972527,1.24121406,161.13,161.09,14.81]
[1721199973923,1.24121406,161.14,161.09,14.81]
[1721199974622,16.05121406,161.14,161.09,14.81]
[1721199974841,1.24121406,161.13,161.05,15.4203]
[1721199975032,1.24121406,161.13,161.05,14.81]
[1721199975033,14.81,161.11,161.05,14.81]
[1721199975234,16.05121406,161.11,161.05,14.81]
[1721199975536,16.05121406,161.11,161.06,14.81]
[1721199975735,16.05121406,161.11,161.03,0.8208803]
[1721199975928,16.05121406,161.11,161.06,14.81]
[1721199976529,14.81,161.1,161.05,14.81]
[1721199979226,12.2441,161.14,161.06,46.12932699]
[1721199979227,6.0383,161.14,161.06,46.12932699]
[1721199979539,30.7005,161.16,161.11,14.81]
[1721199980147,15.8905,161.16,161.12,1.24114433]
[1721199980371,15.8905,161.16,161.12,21.24114433]
[1721199981636,15.8905,161.16,161.12,36.05114433]
[1721199981840,15.8905,161.16,161.13,1.24108156]
[1721199982154,31.94171406,161.16,161.12,20.0]
[1721199982328,30.7005,161.16,161.12,20.0]
[1721199982529,30.7005,161.16,161.13,1.24108414]
[1721199982732,7.70941406,161.18,161.14,1.24108318]
[1721199982944,16.59951406,161.2,161.15,1.24095305]
[1721199983139,31.40951406,161.2,161.15,21.24095305]
[1721199984160,30.1683,161.2,161.15,36.05095305]
[1721199984374,30.1683,161.2,161.16,1.2408107]
[1721199984531,30.1683,161.2,161.15,34.81]
[1721199984729,30.1683,161.2,161.15,20.0]
[1721199985054,14.81,161.2,161.15,34.81]
[1721199985463,14.81,161.2,161.16,1.2408133]
[1721199985635,14.81,161.2,161.15,34.81]
[1721199985952,14.81,161.18,161.15,20.0]
[1721199986158,14.81,161.18,161.14,20.0]
[1721199986455,16.05121406,161.17,161.11,14.81]
[1721199986651,16.05121406,161.17,161.12,20.0]
[1721199986652,14.81,161.16,161.12,20.0]
[1721199986851,14.81,161.18,161.12,34.81]
[1721199987049,14.81,161.18,161.13,1.24098263]
[1721199987757,14.81,161.18,161.13,16.05098263]
[1721199987929,14.81,161.18,161.13,14.81]
[1721199988537,14.81,161.18,161.12,34.81]
[1721199988745,14.81,161.18,161.12,20.0]
[1721199988942,14.81,161.18,161.13,14.81]
[1721199989657,16.39121406,161.19,161.14,14.81]
[1721199989846,14.81,161.2,161.15,16.05093578]
[1721199990947,14.81,161.2,161.16,1.24083657]
[1721199991336,16.05121406,161.21,161.16,16.05083657]
[1721199991541,1.24121406,161.21,161.17,1.24078402]
[1721199991737,22.69031406,161.22,161.18,1.24071629]
[1721199992051,14.81,161.21,161.16,14.81]
[1721199992240,14.81,161.21,161.17,1.24072975]
[1721199992436,14.81,161.21,161.18,1.24072876]
[1721199992765,22.69031406,161.22,161.18,1.24072876]
[1721199992960,22.69031406,161.22,161.16,14.81]
[1721199992961,14.81,161.21,161.16,14.81]
[1721199993149,14.81,161.21,161.13,14.81]
[1721199993150,14.81,161.19,161.13,14.81]
[1721199993463,1.24121406,161.2,161.11,2.1302287]
[1721199993464,14.81,161.18,161.14,20.0]
[1721199993755,14.81,161.18,161.12,14.81]
[1721199993962,1.24121406,161.17,161.11,2.1302287]
[1721199994158,14.81,161.17,161.12,14.81]
[1721199994332,14.81,161.18,161.13,14.81]
[1721199995134,14.81,161.19,161.14,34.81]
[1721199996362,1.24121406,161.18,161.14,20.0]
[1721199996760,16.05121406,161.19,161.14,20.0]
[1721199997265,1.24121406,161.21,161.14,34.81]
[1721199997440,14.81,161.21,161.15,1.24077901]
[1721199997647,8.05031406,161.22,161.16,14.81]
[1721199997839,22.86031406,161.22,161.17,1.24074427]
[1721199998257,14.81,161.21,161.17,1.24074614]
[1721199998544,16.05121406,161.2,161.14,20.0]
[1721199998751,16.05121406,161.2,161.15,1.24079933]
[1721199998955,1.24121406,161.2,161.15,14.81]
[1721199999248,1.24121406,161.21,161.16,1.24080044]
[1721199999556,14.81,161.21,161.16,16.05080044]
[1721199999754,16.05121406,161.21,161.16,16.05080044]
[1721199999962,16.05121406,161.21,161.17,1.24076843]
[1721200000975,14.81,161.21,161.18,1.24075992]
[1721200001367,16.05121406,161.22,161.18,1.24075992]
[1721200001558,14.81,161.21,161.18,1.24075992]
[1721200002042,14.81,161.21,161.17,1.24072214]
[1721200002245,14.81,161.21,161.18,1.24072214]
[1721200002655,14.81,161.2,161.12,6.5202]
[1721200002854,14.81,161.2,161.15,14.81]
[1721200003057,14.81,161.21,161.16,14.81]
[1721200003350,14.81,161.21,161.17,1.24074628]
[1721200003572,16.05121406,161.2,161.13,65.0]
[1721200003751,14.81,161.2,161.15,14.81]
[1721200004779,14.81,161.2,161.16,1.2407507]
[1721200005273,16.05121406,161.21,161.16,16.0507507]
[1721200005851,16.05121406,161.21,161.17,1.24074685]
[1721200007574,14.81,161.22,161.18,1.24074715]
[1721200008080,14.81,161.22,161.17,14.81]
[1721200008270,14.81,161.21,161.16,14.81]
[1721200008471,14.81,161.21,161.13,65.0]
[1721200008667,14.81,161.21,161.15,14.81]
[1721200008974,14.81,161.18,161.08,6.0948]
[1721200009180,1.24121406,161.2,161.12,14.81]
[1721200009181,14.81,161.17,161.12,14.81]
[1721200009365,16.05121406,161.17,161.11,14.81]
[1721200009678,14.81,161.16,161.1,44.81]
[1721200010065,14.81,161.16,161.1,14.81]
[1721200010790,14.81,161.16,161.11,14.81]
[1721200011282,16.05121406,161.15,161.09,31.3643]
[1721200011459,16.05121406,161.14,161.1,20.0]
[1721200011658,14.81,161.14,161.1,20.0]
[1721200011860,14.81,161.15,161.1,20.0]
[1721200012584,16.05121406,161.14,161.1,20.0]
[1721200012889,14.81,161.15,161.1,20.0]
[1721200013096,16.05121406,161.14,161.1,20.0]
[1721200013286,16.05121406,161.14,161.05,15.4442]
[1721200013476,14.81,161.13,161.07,14.81]
[1721200013674,1.24121406,161.12,161.08,20.0]
[1721200013980,14.81,161.1,161.01,18.30207011]
[1721200014170,14.81,161.11,161.06,14.81]
[1721200016087,1.24121406,161.12,161.03,10.8208803]
[1721200016088,0.17,161.13,161.07,16.0515513]
[1721200016292,14.98,161.13,161.08,14.81]
[1721200016902,14.81,161.13,161.08,14.81]
[1721200019093,16.05121406,161.12,161.07,14.81]
[1721200019609,14.81,161.13,161.08,14.81]
[1721200020201,16.05121406,161.12,161.03,0.8208803]
[1721200020396,0.17,161.11,161.07,14.81]
[1721200020602,16.22121406,161.11,161.06,14.81]
[1721200020803,14.81,161.12,161.07,36.05158334]
[1721200021015,14.81,161.13,161.08,16.05142129]
[1721200021214,14.81,161.13,161.08,1.2414155]
[1721200021416,16.05121406,161.12,161.07,20.0]
[1721200021713,1.24121406,161.11,161.07,20.0]
[1721200021914,16.05121406,161.11,161.07,20.0]
[1721200022121,14.81,161.12,161.07,36.05156205]
[1721200022417,16.05121406,161.11,161.07,20.0]
[1721200022719,1.24121406,161.1,161.06,14.81]
[1721200023020,16.05121406,161.1,161.05,14.81]
[1721200023313,14.81,161.1,161.06,20.0]
[1721200023827,14.81,161.11,161.06,20.0]
[1721200023999,16.05121406,161.11,161.06,34.81]
[1721200024204,14.81,161.11,161.06,34.81]
[1721200025196,14.81,161.12,161.07,14.81]
[1721200025706,16.05121406,161.11,161.06,34.81]
[1721200026018,14.81,161.11,161.06,34.81]
[1721200026923,14.81,161.11,161.07,0.75379973]
[1721200027094,14.81,161.11,161.06,34.81]
[1721200027501,14.81,161.12,161.07,14.81]
[1721200027701,1.24121406,161.11,161.07,14.81]
[1721200028222,16.05121406,161.11,161.06,34.81]
[1721200028421,14.81,161.11,161.06,34.81]
[1721200028625,14.81,161.12,161.06,34.81]
[1721200028823,1.24121406,161.11,161.06,34.81]
[1721200030118,1.24121406,161.11,161.07,14.81]
[1721200030503,1.24121406,161.11,161.06,34.81]
[1721200031300,1.41121406,161.13,161.08,14.81]
[1721200031506,14.81,161.14,161.09,16.05136039]
[1721200032026,1.24121406,161.13,161.1,14.81]
[1721200032199,16.05121406,161.13,161.08,14.81]
[1721200032526,14.81,161.14,161.09,16.0513345]
[1721200032724,1.24121406,161.16,161.1,14.81]